bitfinex-derivatives/quotes_BNBF0:USTF0_20230831
["timestamp","ask_amount","ask_price","bid_price","bid_amount"]
[1693491362020,0.07327199,222.93,222.53,0.18853445]
[1693491362319,0.07327199,222.93,222.54,0.18853445]
[1693491362620,0.07327199,222.93,222.55,0.18853445]
[1693491362814,0.07327199,222.93,222.53,0.18853445]
[1693491363018,0.07327199,222.93,222.54,0.18853445]
[1693491363215,0.07327199,222.93,222.53,0.18853445]
[1693491363520,0.07327199,222.93,222.54,0.18853445]
[1693491363718,0.07327199,222.93,222.53,0.18853445]
[1693491364019,0.07327199,222.93,222.54,0.18853445]
[1693491364314,0.07327199,222.93,222.55,0.18853445]
[1693491364521,0.07327199,222.93,222.52,0.18853445]
[1693491364818,0.07327199,222.93,222.53,0.18853445]
[1693491365119,0.07327199,222.93,222.54,0.18853445]
[1693491365319,0.07327199,222.93,222.52,0.18853445]
[1693491365521,0.07327199,222.93,222.53,0.18853445]
[1693491365719,0.07327199,222.93,222.54,0.18853445]
[1693491365924,0.07327199,222.94,222.55,0.18853445]
[1693491366121,0.07327199,222.94,222.56,0.18853445]
[1693491366423,0.07327199,222.93,222.57,0.18853445]
[1693491366623,0.07327199,222.93,222.58,0.18853445]
[1693491366823,0.07327199,222.93,222.59,0.18853445]
[1693491367023,0.07327199,222.93,222.6,0.18853445]
[1693491367322,0.07327199,222.93,222.61,0.18853445]
[1693491367522,0.07327199,222.93,222.51,0.18853445]
[1693491367722,0.07327199,222.89,222.52,0.18853445]
[1693491367924,0.07327199,222.89,222.47,0.18853445]
[1693491368220,0.07327199,222.89,222.48,0.18853445]
[1693491368421,0.07327199,222.89,222.47,0.26206631]
[1693491368616,0.07327199,222.89,222.48,0.18853445]
[1693491368819,0.07327199,222.89,222.49,0.18853445]
[1693491369021,0.07327199,222.89,222.5,0.18853445]
[1693491369221,0.07327199,222.89,222.47,0.18853445]
[1693491369417,0.07327199,222.88,222.48,0.18853445]
[1693491369619,0.07327199,222.88,222.47,0.18853445]
[1693491369820,0.07327199,222.88,222.48,0.18853445]
[1693491370022,0.07327199,222.88,222.49,0.18853445]
[1693491370219,0.07327199,222.88,222.5,0.18853445]
[1693491370424,0.07327199,222.88,222.47,0.18853445]
[1693491370721,0.07327199,222.88,222.48,0.18853445]
[1693491371024,0.07327199,222.88,222.49,0.18853445]
[1693491371225,0.07327199,222.88,222.47,0.18853445]
[1693491372119,0.07327199,222.87,222.47,0.18853445]
[1693491372425,0.07327199,222.87,222.48,0.18853445]
[1693491372626,0.07327199,222.87,222.49,0.18853445]
[1693491372824,0.07327199,222.87,222.46,0.18853445]
[1693491373027,0.07327199,222.86,222.47,0.18853445]
[1693491373228,0.07327199,222.86,222.46,0.18853445]
[1693491373425,0.07327199,222.86,222.47,0.18853445]
[1693491373626,0.07327199,222.86,222.46,0.18853445]
[1693491373828,0.07327199,222.86,222.47,0.18853445]
[1693491374029,0.07327199,222.86,222.48,0.18853445]
[1693491374334,0.07327199,222.86,222.49,0.18853445]
[1693491374525,0.07327199,222.86,222.45,0.07353186]
[1693491374526,0.07327199,222.86,222.46,0.18853445]
[1693491374832,0.07327199,222.86,222.47,0.18853445]
[1693491375032,0.07327199,222.86,222.46,0.18853445]
[1693491375243,0.07327199,222.86,222.47,0.18853445]
[1693491375535,0.07327199,222.86,222.48,0.18853445]
[1693491375731,0.07327199,222.85,222.46,0.18853445]
[1693491376731,0.07327199,222.84,222.45,0.18853445]
[1693491376932,0.07327199,222.84,222.46,0.18853445]
[1693491377128,0.07327199,222.84,222.29,0.49021242]
[1693491377129,0.07327199,222.79,222.47,0.18853445]
[1693491377332,0.82528365,222.83,222.4,0.18853445]
[1693491377333,0.07327199,222.78,222.4,0.18853445]
[1693491377532,0.07327199,222.77,222.41,0.18853445]
[1693491377740,0.07327199,222.77,222.38,0.18853445]
[1693491377941,0.07327199,222.77,222.39,0.18853445]
[1693491378136,0.07327199,222.77,222.38,0.18853445]
[1693491378339,0.07327199,222.78,222.39,0.18853445]
[1693491378538,0.07327199,222.78,222.37,0.18853445]
[1693491379635,0.07327199,222.78,222.38,0.18853445]
[1693491379831,0.07327199,222.78,222.35,0.18853445]
[1693491380037,0.07327199,222.78,222.36,0.18853445]
[1693491380237,0.07327199,222.79,222.35,0.18853445]
[1693491380437,0.07327199,222.79,222.36,0.18853445]
[1693491380638,0.07327199,222.79,222.37,0.18853445]
[1693491380837,0.07327199,222.79,222.35,0.18853445]
[1693491381034,0.07327199,222.79,222.36,0.18853445]
[1693491381239,0.07327199,222.79,222.35,0.18853445]
[1693491381542,0.07327199,222.8,222.36,0.18853445]
[1693491381734,0.82533068,222.79,222.34,0.18853445]
[1693491382039,0.07327199,222.8,222.35,0.18853445]
[1693491382244,0.07327199,222.81,222.36,0.18853445]
[1693491382445,0.82531852,222.8,222.33,0.18853445]
[1693491382635,0.82531852,222.8,222.34,0.18853445]
[1693491382835,0.82531852,222.8,222.33,0.18853445]
[1693491383041,0.82531852,222.8,222.34,0.18853445]
[1693491383243,0.82531852,222.8,222.33,0.18853445]
[1693491383440,0.82531852,222.8,222.34,0.18853445]
[1693491383635,0.07327199,222.82,222.35,0.18853445]
[1693491383836,0.82531049,222.81,222.36,0.18853445]
[1693491384042,0.89858248,222.81,222.37,0.18853445]
[1693491384243,0.82531049,222.8,222.38,0.18853445]
[1693491384542,0.82531049,222.8,222.39,0.18853445]
[1693491384746,0.89858248,222.81,222.31,0.18853445]
[1693491384945,0.82531049,222.8,222.32,0.18853445]
[1693491385244,0.82531049,222.8,222.33,0.18853445]
[1693491385446,0.82531049,222.8,222.31,0.18853445]
[1693491385638,0.82531049,222.79,222.32,0.18853445]
[1693491385840,0.07327199,222.82,222.33,0.18853445]
[1693491386040,0.82532893,222.81,222.34,0.18853445]
[1693491386240,0.82532893,222.81,222.35,0.18853445]
[1693491386447,0.82532893,222.81,222.29,0.18853445]
[1693491386641,0.82532893,222.82,222.3,0.18853445]
[1693491386843,0.82532893,222.81,222.29,0.18853445]
[1693491387043,0.82532893,222.82,222.3,0.18853445]
[1693491387346,0.82532893,222.81,222.31,0.18853445]
[1693491387547,0.82532893,222.8,222.32,0.18853445]
[1693491387840,0.82532893,222.79,222.33,0.18853445]
[1693491388048,0.07327199,222.83,222.29,0.18853445]
[1693491388049,0.82532893,222.82,222.29,0.18853445]
[1693491388246,0.82532823,222.81,222.3,0.18853445]
[1693491388447,0.82532823,222.8,222.31,0.18853445]
[1693491388644,0.82532823,222.79,222.32,0.18853445]
[1693491388846,0.82532823,222.82,222.28,0.18853445]
[1693491389040,0.82532534,222.81,222.29,0.18853445]
[1693491389244,0.82532534,222.82,222.28,0.18853445]
[1693491389565,0.82532534,222.81,222.29,0.18853445]
[1693491389748,0.82532534,222.8,222.3,0.18853445]
[1693491389944,0.82532534,222.82,222.28,0.18853445]
[1693491390148,0.82532534,222.81,222.28,0.18853445]
[1693491390351,0.82532534,222.82,222.28,0.18853445]
[1693491390549,0.82532534,222.81,222.28,0.18853445]
[1693491390749,0.82532534,222.8,222.28,0.18853445]
[1693491390954,0.82532534,222.79,222.28,0.18853445]
[1693491391552,0.07327199,222.83,222.28,0.18853445]
[1693491391753,0.82532516,222.82,222.28,0.18853445]
[1693491392452,0.82532516,222.82,222.29,0.18853445]
[1693491392659,0.07327199,222.81,222.27,0.18853445]
[1693491392855,0.82532516,222.8,222.28,0.18853445]
[1693491393055,0.07327199,222.77,222.28,0.18853445]
[1693491393251,0.82532516,222.76,222.28,0.18853445]
[1693491393958,0.82532516,222.76,222.26,0.18853445]
[1693491394256,0.82532516,222.75,222.27,0.18853445]
[1693491394453,0.82532516,222.77,222.28,0.18853445]
[1693491394658,0.82532516,222.76,222.21,0.18853445]
[1693491394850,0.82532516,222.77,222.22,0.18853445]
[1693491395060,0.89859715,222.77,222.21,0.18853445]
[1693491395250,0.89859715,222.77,222.2,0.07353186]
[1693491395251,0.82532516,222.76,222.22,0.18853445]
[1693491395456,0.82532516,222.77,222.2,0.18853445]
[1693491395659,0.82532516,222.76,222.21,0.18853445]
[1693491395857,0.82532516,222.77,222.2,0.18853445]
[1693491396054,0.82532516,222.76,222.21,0.18853445]
[1693491396259,0.82532516,222.75,222.21,0.18853445]
[1693491396460,0.82532516,222.78,222.2,0.18853445]
[1693491396658,0.82532516,222.77,222.21,0.18853445]
[1693491396853,0.82532516,222.76,222.21,0.18853445]
[1693491397054,0.82532516,222.75,222.21,0.18853445]
[1693491397252,0.82532516,222.74,222.21,0.18853445]
[1693491397457,0.82532516,222.78,222.21,0.18853445]
[1693491397659,0.82553668,222.77,222.21,0.18853445]
[1693491397860,0.82553668,222.76,222.21,0.18853445]
[1693491398160,0.82553668,222.75,222.22,0.18853445]
[1693491398354,0.82553668,222.77,222.23,0.18853445]
[1693491398660,0.82553668,222.76,222.24,0.18853445]
[1693491398853,0.07327199,222.78,222.2,0.18853445]
[1693491398854,0.82553668,222.77,222.2,0.18853445]
[1693491399054,0.82553668,222.76,222.21,0.18853445]
[1693491399253,0.82553668,222.75,222.22,0.18853445]
[1693491399454,0.82553668,222.74,222.23,0.18853445]
[1693491399656,0.82553668,222.73,222.24,0.18853445]
[1693491399857,0.07327199,222.78,222.25,0.18853445]
[1693491400058,0.82556244,222.77,222.26,0.18853445]
[1693491400254,0.82556244,222.77,222.2,0.18853445]
[1693491400455,0.82556244,222.77,222.21,0.18853445]
[1693491401363,0.89883443,222.77,222.21,0.18853445]
[1693491401564,0.82556244,222.76,222.21,0.18853445]
[1693491402358,0.89883443,222.76,222.21,0.26206631]
[1693491402558,0.82556244,222.75,222.22,0.18853445]
[1693491403262,0.82556244,222.75,222.22,0.26206631]
[1693491403455,0.82556244,222.75,222.23,0.18853445]
[1693491404265,0.89883443,222.75,222.23,0.26206631]
[1693491404466,0.82556244,222.74,222.24,0.18853445]
[1693491404862,0.82556244,222.74,222.25,0.18853445]
[1693491405062,0.82556244,222.74,222.26,0.18853445]
[1693491405262,0.89883443,222.74,222.23,0.18853445]
[1693491405465,0.82556244,222.73,222.24,0.18853445]
[1693491406266,0.82556244,222.74,222.24,0.18853445]
[1693491406462,0.89883556,222.73,222.24,0.26206631]
[1693491406663,0.07327199,222.73,222.25,0.18853445]
[1693491406860,0.07327199,222.74,222.25,0.18853445]
[1693491407060,0.89883433,222.73,222.25,0.18853445]
[1693491407261,0.07327199,222.73,222.25,0.26206631]
[1693491407460,0.07327199,222.73,222.26,0.18853445]
[1693491408262,0.07327199,222.71,222.27,0.07353186]
[1693491408463,0.07327199,222.71,222.28,0.18853445]
[1693491408667,0.07327199,222.71,222.29,0.18853445]
[1693491408866,0.07327199,222.71,222.26,0.07353186]
[1693491408867,0.07327199,222.71,222.27,0.18853445]
[1693491409068,0.07327199,222.71,222.28,0.18853445]
[1693491409370,0.07327199,222.71,222.29,0.18853445]
[1693491409570,0.07327199,222.71,222.3,0.18853445]
[1693491409769,0.07327199,222.71,222.31,0.18853445]
[1693491409969,0.07327199,222.71,222.32,0.18853445]
[1693491410165,0.07327199,222.71,222.33,0.18853445]
[1693491410366,0.07327199,222.7,222.34,0.18853445]
[1693491410570,0.07327199,222.7,222.35,0.18853445]
[1693491410771,0.07327199,222.7,222.36,0.18853445]
[1693491410971,0.07327199,222.7,222.37,0.18853445]
[1693491411167,0.07327199,222.7,222.29,0.18853445]
[1693491411373,0.07327199,222.7,222.28,0.07353186]
[1693491411374,0.07327199,222.68,222.3,0.26206631]
[1693491411668,0.07327199,222.68,222.31,0.18853445]
[1693491412373,0.07327199,222.67,222.31,0.18853445]
[1693491412574,0.07327199,222.68,222.31,0.18853445]
[1693491413875,0.07327199,222.67,222.31,0.18853445]
[1693491416178,0.07327199,222.67,222.31,0.26206631]
[1693491416380,0.07327199,222.67,222.32,0.18853445]
[1693491417380,0.07327199,222.66,222.32,0.18853445]
[1693491418279,0.07327199,222.66,222.32,0.26206631]
[1693491418472,0.07327199,222.66,222.33,0.18853445]
[1693491420576,0.07327199,222.65,222.33,0.18853445]
[1693491423384,0.07327199,222.64,222.33,0.26206631]
[1693491423579,0.07327199,222.64,222.34,0.18853445]
[1693491424379,0.07327199,222.63,222.34,0.26206631]
[1693491424584,0.07327199,222.63,222.35,0.18853445]
[1693491425082,0.07327199,222.63,222.36,0.18853445]
[1693491425296,0.07327199,222.62,222.37,0.18853445]
[1693491425587,0.07327199,222.62,222.34,0.18853445]
[1693491425790,0.07327199,222.62,222.35,0.18853445]
[1693491425990,0.07327199,222.61,222.36,0.18853445]
[1693491426190,0.07327199,222.6,222.37,0.18853445]
[1693491426389,0.07327199,222.59,222.32,0.07353186]
[1693491427189,0.07327199,222.59,222.31,0.07353186]
[1693491427490,0.07327199,222.57,222.33,0.07353186]
[1693491428087,0.07327199,222.58,222.32,0.07353186]
[1693491429491,0.07327199,222.58,222.33,0.18901908]
[1693491430993,0.07327199,222.59,222.33,0.18901908]
[1693491431192,0.07327199,222.59,222.32,0.26255094]
[1693491431494,0.07327199,222.59,222.33,0.18901908]
[1693491432293,0.07327199,222.59,222.34,0.18901908]
[1693491432489,0.07327199,222.59,222.35,0.18901908]
[1693491432692,0.07327199,222.59,222.36,0.18901908]
[1693491432889,0.07327199,222.59,222.37,0.18901908]
[1693491433095,0.07327199,222.59,222.38,0.18901908]
[1693491433290,0.48847997,222.64,222.25,0.14706372]
[1693491433291,0.07327199,222.6,222.32,0.07353186]
[1693491433491,0.07327199,222.6,222.33,0.18901825]
[1693491434192,0.07327199,222.6,222.34,0.18901825]
[1693491434495,0.07327199,222.6,222.35,0.18901825]
[1693491434694,0.07327199,222.6,222.32,0.18901825]
[1693491434894,0.07327199,222.6,222.33,0.18901825]
[1693491435194,0.07327199,222.6,222.34,0.18901825]
[1693491435393,0.07327199,222.61,222.32,0.26255011]
[1693491435694,0.07327199,222.61,222.33,0.18901825]
[1693491435894,0.07327199,222.6,222.33,0.18901825]
[1693491436094,0.07327199,222.6,222.34,0.18901825]
[1693491436291,0.07327199,222.54,222.34,0.18901825]
[1693491436494,0.07327199,222.53,222.32,0.18901825]
[1693491436691,0.07327199,222.53,222.24,0.07353186]
[1693491436895,0.07327199,222.56,222.22,0.07353186]
[1693491437095,0.07327199,222.55,222.25,0.18922707]
[1693491437295,0.07327199,222.56,222.26,0.18922707]
[1693491437496,0.07327199,222.56,222.22,0.18922707]
[1693491437696,0.07327199,222.56,222.23,0.18922707]
[1693491437895,0.07327199,222.56,222.22,0.18922707]
[1693491438094,0.07327199,222.57,222.23,0.18922707]
[1693491438298,0.07327199,222.57,222.21,0.18922707]
[1693491438497,0.07327199,222.57,222.2,0.07353186]
[1693491438498,0.07327199,222.57,222.22,0.18922707]
[1693491438700,0.07327199,222.57,222.23,0.18922707]
[1693491438894,0.07327199,222.58,222.21,0.18922707]
[1693491439096,0.07327199,222.58,222.22,0.18922707]
[1693491439298,0.07327199,222.58,222.2,0.07353186]
[1693491439299,0.07327199,222.61,222.23,0.26275893]
[1693491439498,0.07327199,222.62,222.25,0.07353186]
[1693491439702,0.07327199,222.62,222.01,0.98042484]
[1693491439703,0.07327199,222.63,222.26,0.26275893]
[1693491439898,0.07327199,222.63,222.27,0.18922707]
[1693491440101,0.07327199,222.7,222.33,0.07353186]
[1693491440405,0.07327199,222.71,222.34,0.18922707]
[1693491440604,0.07327199,222.72,222.34,0.26275893]
[1693491440800,0.07327199,222.72,222.35,0.26275893]
[1693491441000,0.07327199,222.72,222.36,0.18922707]
[1693491442010,0.07327199,222.73,222.36,0.18922707]
[1693491442205,0.07327199,222.73,222.35,0.18922707]
[1693491442409,0.07327199,222.74,222.36,0.18922707]
[1693491442710,0.07327199,222.79,222.41,0.07353186]
[1693491442909,0.07327199,222.79,222.42,0.18922707]
[1693491443305,0.07327199,222.83,222.42,0.18922707]
[1693491443508,0.07327199,222.83,222.41,0.18922707]
[1693491443703,0.07327199,222.83,222.42,0.18922707]
[1693491443906,0.07327199,222.83,222.16,0.98042484]
[1693491443907,0.07327199,222.85,222.43,0.18922707]
[1693491444111,0.07327199,222.85,222.14,0.98042484]
[1693491444112,3.10687664,223.17,222.38,0.18922707]
[1693491444311,0.07285533,222.87,222.39,0.07314105]
[1693491444509,0.07285533,222.87,222.39,0.26236812]
[1693491444705,0.07285533,222.87,222.4,0.18922707]
[1693491445512,0.07285533,222.86,222.4,0.18922707]
[1693491445706,0.89795498,222.86,222.4,0.18922707]
[1693491445905,2.42851127,223.0,222.41,0.18922707]
[1693491445906,0.07285533,222.87,222.41,0.18922707]
[1693491446210,0.82509524,222.86,222.42,0.18922707]
[1693491446507,0.82509524,222.86,222.37,0.18922707]
[1693491446708,0.82509524,222.87,222.38,0.18922707]
[1693491446913,0.82508618,222.86,222.37,0.18922707]
[1693491447111,0.82508618,222.88,222.39,0.18922707]
[1693491447308,0.82508618,222.88,222.4,0.18922707]
[1693491447512,0.82508618,222.89,222.36,0.18922707]
[1693491447814,0.82508618,222.88,222.37,0.18922707]
[1693491448014,0.82508618,222.89,222.36,0.18922707]
[1693491448316,0.82508618,222.88,222.37,0.18922707]
[1693491448510,0.82508618,222.87,222.38,0.18922707]
[1693491448816,0.82508618,222.86,222.39,0.18922707]
[1693491449008,0.82508618,222.88,222.33,0.26236812]
[1693491449213,0.82508618,222.87,222.34,0.18922707]
[1693491449513,0.82508618,222.89,222.34,0.18922707]
[1693491449813,0.82508618,222.88,222.34,0.18922707]
[1693491450014,0.82508618,222.87,222.34,0.18922707]
[1693491450216,0.82508618,222.9,222.33,0.18922707]
[1693491450414,0.82508618,222.9,222.34,0.18922707]
[1693491450616,0.82508618,222.9,222.35,0.18922707]
[1693491450811,0.82508618,222.9,222.32,0.18922707]
[1693491451014,0.82508618,222.9,222.33,0.18922707]
[1693491451209,0.82508618,222.89,222.34,0.18922707]
[1693491451512,0.82508618,222.88,222.35,0.18922707]
[1693491451710,0.82508618,222.87,222.36,0.18922707]
[1693491451913,0.82508618,222.91,222.37,0.18922707]
[1693491452110,0.82508618,222.91,222.38,0.18922707]
[1693491452316,0.82508618,222.91,222.39,0.18922707]
[1693491452512,0.82508618,222.92,222.31,0.18922707]
[1693491452714,0.82508618,222.91,222.32,0.18922707]
[1693491452915,0.82508618,222.9,222.33,0.18922707]
[1693491453113,0.82508618,222.89,222.3,0.18922707]
[1693491453312,0.82508618,222.88,222.31,0.18922707]
[1693491453516,0.82508618,222.92,222.32,0.18922707]
[1693491453819,0.07285533,222.89,222.33,0.18922707]
[1693491454018,0.07285533,222.87,222.25,0.18922707]
[1693491454214,0.89794151,222.86,222.26,0.18922707]
[1693491454417,0.82508618,222.85,222.24,0.18922707]
[1693491454618,0.82508618,222.86,222.23,0.18922707]
[1693491454920,0.82508618,222.85,222.23,0.18922707]
[1693491455220,0.82508618,222.84,222.23,0.26236812]
[1693491455419,0.82508618,222.87,222.24,0.18922707]
[1693491455718,0.82508618,222.86,222.24,0.18922707]
[1693491457316,0.96791249,222.94,222.23,0.07288052]
[1693491457522,0.82508618,222.85,222.25,0.18922707]
[1693491457823,0.82508618,222.84,222.26,0.18922707]
[1693491458120,0.82508618,222.83,222.27,0.18922707]
[1693491458323,0.82508618,222.85,222.24,0.18922707]
[1693491458514,0.82508618,222.84,222.25,0.18922707]
[1693491458714,0.82508618,222.87,222.26,0.18922707]
[1693491458917,0.82508618,222.86,221.84,0.18922707]
[1693491459116,2.46751505,225.0,221.85,0.18922707]
[1693491459322,1.64242887,225.0,221.86,0.18922707]
[1693491459617,1.64242887,225.0,221.87,0.18922707]
[1693491459817,1.64242887,225.0,221.88,0.18922707]
[1693491460016,1.64242887,225.0,221.89,0.18922707]
[1693491460219,1.64242887,225.0,221.9,0.18922707]
[1693491460420,1.64242887,225.0,221.91,0.18922707]
[1693491460719,1.64242887,225.0,221.92,0.18922707]
[1693491460917,1.64242887,225.0,221.93,0.18922707]
[1693491461122,1.64242887,225.0,221.94,0.18922707]
[1693491461320,1.64242887,225.0,221.95,0.18922707]
[1693491461523,1.64242887,225.0,220.21,1.65127671]
[1693491463024,1.64242887,225.0,220.2,1.65127671]
[1693491466827,1.64242887,224.99,220.2,1.65127671]
[1693491467027,2.46751505,224.99,220.21,0.18922707]
[1693491468129,0.48452082,222.8,222.11,0.14602556]
[1693491468323,0.07267812,222.75,222.18,0.07301278]
[1693491468926,0.07267812,222.76,222.19,0.07301278]
[1693491469831,0.07267812,222.77,222.21,0.07301278]
[1693491470629,0.07267812,222.77,222.2,0.07301278]
[1693491470830,0.07267812,222.76,222.2,0.07301278]
[1693491471333,0.14535624,222.78,222.19,0.07301278]
[1693491471334,0.07267812,222.75,222.19,0.07301278]
[1693491472032,0.07267812,222.74,222.21,0.07301278]
[1693491473028,0.07267812,222.72,222.24,0.07301278]
[1693491473833,0.07267812,222.72,222.23,0.07301278]
[1693491475034,0.07267812,222.72,222.24,0.07301278]
[1693491475333,0.07267812,222.71,222.24,0.07301278]
[1693491475734,0.07267812,222.72,222.24,0.07301278]
[1693491476835,0.07267812,222.72,222.23,0.07301278]
[1693491478131,0.07267812,222.72,222.24,0.07301278]
[1693491480636,2.42260411,222.85,221.83,2.43375941]
[1693491480637,0.07267812,222.73,222.25,0.07301278]
[1693491481037,0.07267812,222.72,222.25,0.07301278]
[1693491481737,0.07267812,222.72,222.24,0.07301278]
[1693491482037,0.07267812,222.71,222.25,0.07301278]
[1693491482537,0.14535624,222.73,222.25,0.07301278]
[1693491482538,0.07267812,222.7,222.25,0.07301278]
[1693491482731,0.07267812,222.71,222.25,0.07301278]
[1693491483133,0.07267812,222.69,222.25,0.07301278]
[1693491483738,0.07267812,222.7,222.25,0.07301278]
[1693491484442,0.07267812,222.69,222.25,0.07301278]
[1693491484943,0.07267812,222.68,222.26,0.07301278]
[1693491486045,0.07267812,222.67,222.27,0.07301278]
[1693491486240,0.07267812,222.67,222.26,0.07301278]
[1693491486442,0.07267812,222.66,222.26,0.07301278]
[1693491487145,0.07267812,222.67,222.26,0.07301278]
[1693491487340,0.07267812,222.67,222.27,0.07301278]
[1693491487941,0.07267812,222.66,222.28,0.07301278]
[1693491488345,0.07267812,222.65,222.28,0.07301278]
[1693491489147,0.07267812,222.65,222.29,0.07301278]
[1693491490348,0.07267812,222.65,222.28,0.07301278]
[1693491490841,0.07267812,222.64,222.29,0.07301278]
[1693491491045,0.07267812,222.65,222.29,0.07301278]
[1693491492248,0.96904164,222.72,222.29,0.07301278]
[1693491492249,0.07267812,222.64,222.29,0.07301278]
[1693491492450,0.07267812,222.65,222.29,0.07301278]
[1693491492642,0.14535624,222.68,222.35,0.07301278]
[1693491492847,0.07267812,222.7,222.35,0.07301278]
[1693491493042,0.07267812,222.7,222.29,0.14602556]
[1693491493043,0.07267812,222.7,222.36,0.07301278]
[1693491493244,0.07267812,222.71,222.36,0.07301278]
[1693491493946,0.07267812,222.7,222.36,0.07301278]
[1693491494544,0.07267812,222.69,222.35,0.07301278]
[1693491496043,0.07267812,222.69,222.36,0.07301278]
[1693491496545,0.07267812,222.69,222.35,0.07301278]
[1693491497048,0.07267812,222.68,222.35,0.07301278]
[1693491497549,0.07267812,222.68,222.36,0.07301278]
[1693491497749,0.07267812,222.69,222.36,0.07301278]
[1693491497946,0.07267812,222.68,222.36,0.07301278]
[1693491499547,0.07267812,222.68,222.37,0.07301278]
[1693491499849,0.07267812,222.69,222.37,0.07301278]
[1693491502350,0.07267812,222.68,222.37,0.07301278]
[1693491502551,0.07267812,222.68,222.36,0.07301278]
[1693491503653,0.07267812,222.63,222.31,0.07301278]
[1693491503845,0.07267812,222.63,222.32,0.07301278]
[1693491504049,0.07267812,222.64,222.32,0.07301278]
[1693491504447,0.07267812,222.63,222.31,0.07301278]
[1693491506154,0.07267812,222.64,222.31,0.07301278]
[1693491506352,0.07267812,222.64,222.32,0.07301278]
[1693491506651,0.07267812,222.64,222.31,0.07301278]
[1693491507952,0.07267812,222.64,222.32,0.07301278]
[1693491508149,0.07267812,222.64,222.31,0.07301278]
[1693491508354,0.07267812,222.63,222.31,0.07301278]
[1693491508854,0.07267812,222.64,222.31,0.07301278]
[1693491509049,0.07267812,222.64,222.32,0.07301278]
[1693491509654,0.07267812,222.64,222.31,0.07301278]
[1693491511354,0.07267812,222.63,222.31,0.07301278]
[1693491511553,0.07267812,222.63,222.3,0.07301278]
[1693491512854,0.07267812,222.64,222.3,0.07301278]
[1693491513154,0.07267812,222.64,222.31,0.07301278]
[1693491513355,0.07267812,222.65,222.32,0.07301278]
[1693491513548,0.07267812,222.65,222.31,0.07301278]
[1693491513756,0.07267812,222.64,222.3,0.07301278]
[1693491514150,0.07267812,222.63,222.3,0.07301278]
[1693491514355,0.07267812,222.59,222.26,0.07301278]
[1693491514656,0.07267812,222.57,222.25,0.07301278]
[1693491515057,0.07267812,222.58,222.21,0.07301278]
[1693491515450,0.07267812,222.57,222.2,0.07301278]
[1693491520859,0.14535624,222.59,222.2,0.07301278]
[1693491521064,0.07267812,222.74,222.33,0.07301278]
[1693491521765,0.07267812,222.75,222.32,0.07301278]
[1693491522061,0.07267812,222.75,222.33,0.07301278]
[1693491523765,0.07267812,222.75,222.32,0.07301278]
[1693491524266,0.07267812,222.76,222.32,0.07301278]
[1693491524464,0.07267812,222.75,222.32,0.07301278]
[1693491524664,0.07267812,222.76,222.32,0.07301278]
[1693491525065,0.07267812,222.77,222.33,0.07301278]
[1693491526167,0.07267812,222.76,222.33,0.07301278]
[1693491526466,0.07267812,222.76,222.34,0.18880904]
[1693491526663,0.07267812,222.76,222.35,0.18880904]
[1693491526864,0.07267812,222.76,222.36,0.18880904]
[1693491527059,0.07267812,222.76,222.37,0.18880904]
[1693491527264,0.07267812,222.76,222.17,0.48675188]
[1693491527265,0.07267812,222.75,222.38,0.18880904]
[1693491527465,0.07267812,222.75,222.39,0.18880904]
[1693491527662,0.07267812,222.75,222.32,0.18880904]
[1693491527867,0.07267812,222.75,222.33,0.18880904]
[1693491528067,0.07267812,222.75,222.34,0.18880904]
[1693491528267,0.07267812,222.75,222.35,0.18880904]
[1693491528468,0.07267812,222.75,222.31,0.18880904]
[1693491528668,0.07267812,222.75,222.32,0.18880904]
[1693491528862,0.07267812,222.75,222.31,0.18880904]
[1693491529371,0.07267812,222.7,222.31,0.18880904]
[1693491529668,0.07267812,222.69,222.32,0.18880904]
[1693491529870,0.07267812,222.69,222.24,0.07301278]
[1693491530068,0.07267812,222.69,222.33,0.18880904]
[1693491530264,0.07267812,222.69,222.34,0.18880904]
[1693491530465,0.07267812,222.69,222.26,0.18880904]
[1693491530668,0.07267812,222.69,222.35,0.18880904]
[1693491530863,0.07267812,222.69,222.27,0.18880904]
[1693491531064,0.07267812,222.69,222.36,0.18880904]
[1693491531270,0.07267812,222.69,222.28,0.18880904]
[1693491531569,0.07267812,222.69,222.29,0.18880904]
[1693491531768,0.07267812,222.69,222.25,0.26182182]
[1693491531965,0.07267812,222.69,222.26,0.18880904]
[1693491532465,0.07267812,222.69,222.24,0.07301278]
[1693491532466,0.07267812,222.69,222.27,0.18880904]
[1693491532666,0.07267812,222.67,222.27,0.18880904]
[1693491532863,0.07267812,222.67,222.25,0.18880904]
[1693491533066,0.07267812,222.67,222.28,0.18880904]
[1693491533368,0.07267812,222.67,222.26,0.18880904]
[1693491533568,0.07267812,222.67,222.29,0.18880904]
[1693491533768,0.07267812,222.67,222.27,0.18880904]
[1693491533971,0.07267812,222.67,222.3,0.18880904]
[1693491534166,0.07267812,222.67,222.28,0.18880904]
[1693491534371,0.07267812,222.67,222.24,0.18880904]
[1693491534973,0.07267812,222.66,222.24,0.18880904]
[1693491535369,0.07267812,222.66,222.25,0.18880904]
[1693491535569,0.07267812,222.66,222.26,0.18880904]
[1693491535973,0.07267812,222.66,222.27,0.18880904]
[1693491536173,0.07267812,222.67,222.28,0.18880904]
[1693491536373,0.07267812,222.67,222.23,0.07301278]
[1693491536374,0.07267812,222.67,222.24,0.18880904]